Workbook

Sheet Anbauentw (hidden)
A1: Entwicklung der Ackernutzung in Nordrhein-Westfalen 2010 bis 2016
B2: Rheinland | F2: Westfalen-Lippe | J2: Nordrhein-Westfalen
A3: Fruchtart | B3: 2010 2) | C3: 2012 1) | D3: 2013 1) | E3: 2016 2) | F3: 2010 2) | G3: 2012 1) | H3: 2013 1) | I3: 2016 2) | J3: 2010 2) | K3: 2012 1) | L3: 2013 1) | M3: 2016 2)
A4: Winterweizen (einschl. Dinkel) | B4: 105061 | C4: 96748 | D4: 103131 | E4: 97575.73 | F4: 178509 | G4: 139731 | H4: 173861 | I4: 167802.96 | J4: 283570 | K4: 236479 | L4: 276992 | M4: 265379 | O4: Winterweizen (einschl. Dinkel)
A5: Sommerweizen | B5: 1482 | C5: 1681 | D5: 1840 | E5: 1267.33 | F5: 1718 | G5: 13099 | H5: 2029 | I5: 1993.54 | J5: 3200 | K5: 14780 | L5: 3869 | M5: 3260.87 | O5: Sommerweizen
A6: Weizen zusammen | B6: 106543 | C6: 98429 | D6: 104971 | E6: 98843.06 | F6: 180227 | G6: 152830 | H6: 175889 | I6: 169796.5 | J6: 286770 | K6: 251260 | L6: 280860 | M6: 268639.56 | O6: Weizen zusammen
A7: Roggen (ab 2010 inkl. Wintermenggetr.) | B7: 2502 | C7: 2409 | D7: 3677 | E7: 2233.19 | F7: 13592 | G7: 15758 | H7: 18091 | I7: 14356.27 | J7: 16095 | K7: 18167 | L7: 21768 | M7: 16589.46 | O7: Roggen (ab 2010 inkl. Wintermenggetr.)
A8: Wintergerste | B8: 30845 | C8: 28048 | D8: 28907 | E8: 33942.65 | F8: 130928 | G8: 85976 | H8: 107945 | I8: 106236.5 | J8: 161773 | K8: 114024 | L8: 136852 | M8: 140179.15 | O8: Wintergerste
A9: Sommergerste | B9: 4079 | C9: 4398 | D9: 4146 | E9: 3653.32 | F9: 5556 | G9: 46572 | H9: 6514 | I9: 8222.14 | J9: 9635 | K9: 50970 | L9: 10660 | M9: 11875.46 | O9: Sommergerste
A10: Gerste zusammen | B10: 34924 | C10: 32446 | D10: 33053 | E10: 37595.97 | F10: 136484 | G10: 132548 | H10: 114459 | I10: 114458.64 | J10: 171408 | K10: 164995 | L10: 147512 | M10: 152054.61 | O10: Gerste zusammen
A11: Hafer | B11: 4033 | C11: 2989 | D11: 2404 | E11: 2341.87 | F11: 8330 | G11: 8400 | H11: 5908 | I11: 4944.67 | J11: 12363 | K11: 11389 | L11: 8312 | M11: 7286.54 | O11: Hafer
A12: Triticale | B12: 6365 | C12: 7579 | D12: 6943 | E12: 5891.74 | F12: 50871 | G12: 48551 | H12: 60716 | I12: 62698.35 | J12: 57236 | K12: 56130 | L12: 67659 | M12: 68590.09 | O12: Triticale
A13: Körnermais einschl. Corn-Cob-Mix | B13: 10054 | C13: 8434 | D13: 9697 | E13: 6212.52 | F13: 88521 | G13: 100037 | H13: 94230 | I13: 82371.6 | J13: 98575 | K13: 108471 | L13: 103927 | M13: 88584.12 | O13: Körnermais einschl. Corn-Cob-Mix
A14: Getreide insgesamt | B14: 164978 | C14: 152573 | D14: 161161 | E14: 153550.99 | F14: 479886 | G14: 459356 | H14: 471808 | I14: 449992.57 | J14: 644863 | K14: 611929 | L14: 632969 | M14: 603543.56 | O14: Getreide, Körnermais u. CCM
A15: Futtererbsen zur Körnergewinnung | B15: 973 | C15: 447 | D15: 721 | E15: 1975.45 | F15: 663 | G15: 695 | H15: 420 | I15: 988.79 | J15: 1635 | K15: 1142 | L15: 1141 | M15: 2964.24 | O15: Futtererbsen zur Körnergewinnung
A16: Ackerbohnen zur Körnergewinnung | B16: 550 | C16: 408 | D16: 348 | E16: 1306.68 | F16: 1501 | G16: 1287 | H16: 1373 | I16: 3119.52 | J16: 2051 | K16: 1695 | L16: 1721 | M16: 4426.2 | O16: Ackerbohnen zur Körnergewinnung
A17: Hülsenfrüchte insgesamt | B17: 1649 | C17: 1081 | D17: 1250 | E17: 3604.42 | F17: 2481 | G17: 2300 | H17: 1984 | I17: 4749.19 | J17: 4130 | K17: 3381 | L17: 3234 | M17: 8353.61 | O17: Hülsenfrüchte insgesamt
A18: Kartoffeln | B18: 22852 | C18: 19542 | D18: 23275 | E18: 22658.97 | F18: 8223 | G18: 7870 | H18: 8049 | I18: 8375.69 | J18: 31074 | K18: 27412 | L18: 31324 | M18: 31034.66 | O18: Kartoffeln
A19: Zuckerrüben | B19: 45320 | C19: 46461 | D19: 43142 | E19: 38576.01 | F19: 8423 | G19: 10688 | H19: 8541 | I19: 9820.28 | J19: 53743 | K19: 57149 | L19: 51683 | M19: 48396.29 | O19: davon Frühkartoffeln
A20: Hackfrüchte insgesamt | B20: 69671 | C20: 66821 | D20: 67160 | E20: 62514.11 | F20: 17210 | G20: 19045 | H20: 17052 | I20: 18848.67 | J20: 86881 | K20: 85876 | L20: 84212 | M20: 81362.78 | O20: Spätkartoffeln/ab 2010 alle Speisekart.
A21: Gemüse und andere Gartengewächse insgesamt | B21: 18119 | C21: 18221 | D21: 19211 | E21: 19621.5 | F21: 8846 | G21: 9043 | H21: 9222 | I21: 9033.96 | J21: 26965 | K21: 27264 | L21: 28433 | M21: 28655.46 | O21: Industriekartoffeln/ab 2010 insg.(Summe)
A22: Winterraps | B22: 14924 | C22: 16565 | D22: 17943 | E22: 15788.38 | F22: 53134 | G22: 47913 | H22: 51239 | I22: 42903.13 | J22: 68058 | K22: 64478 | L22: 69182 | M22: 58691.51 | O22: Zuckerrüben
A23: Sommerraps, Winter- und Sommerrübsen | B23: 181 | C23: 101 | D23: 136 | E23: 132.19 | F23: 356 | G23: 270 | H23: 498 | I23: 136.09 | J23: 538 | K23: 371 | L23: 634 | M23: 268.28 | O23: Hackfrüchte insgesamt
A24: Handelsgewächse insgesamt | B24: 15945 | C24: 18267 | D24: 19228 | E24: 16720.31 | F24: 54419 | G24: 49486 | H24: 52445 | I24: 44031.48 | J24: 70365 | K24: 67753 | L24: 71673 | M24: 60751.79 | O24: Gemüse, Erdbeeren und andere Gartengewächse insgesamt
A25: Feldgras,Getreide u.sonstiges | B25: 13349 | C25: 17725 | D25: 19022 | E25: 10342 | F25: 24877 | G25: 35821 | H25: 33572 | I25: 19694 | J25: 38226 | K25: 53546 | L25: 52594 | M25: 30035 | O25: Winterraps
A26: Grünmais (Silomais) | B26: 46242 | C26: 53899 | D26: 52313 | E26: 53922.11 | F26: 113344 | G26: 129959 | H26: 128184 | I26: 142751.65 | J26: 159586 | K26: 183858 | L26: 180497 | M26: 196673.76 | O26: Sommerraps, Winter- und Sommerrübsen
A27: Futterpfl. insg.Pfl. z. Grünernte | B27: 63073 | C27: 71624 | D27: 71335 | E27: 67310.83 | F27: 143699 | G27: 165780 | H27: 161756 | I27: 167898.94 | J27: 206773 | K27: 237405 | L27: 233091 | M27: 235209.77 | O27: Handelsgewächse insgesamt
A28: Stillgelegte Flächen 3) | B28: 1999 | C28: 1841 | D28: 1892 | E28: 1463.57 | F28: 9409 | G28: 9721 | H28: 9880 | I28: 2944.21 | J28: 11408 | K28: 11562 | L28: 11772 | M28: 4407.78 | O28: Feldgras, Getreide u.sonstiges
A29: Ackerland | B29: 335694 | C29: 330441 | D29: 341237 | E29: 327650.58 | F29: 716632 | G29: 714733 | H29: 724147 | I29: 707564.12 | J29: 1052326 | K29: 1045174 | L29: 1065384 | M29: 1035214.7 | O29: Grünmais (Silomais)
A30: 1) nur Repräsentativ erhoben, nicht mit den Vollerhebungen 2010 vergleichbar | O30: Futterpfl. insg./ab 2010 Pfl. z. Grünernte
A31: 2) nur noch Betriebe ab 5 ha LF bzw. bei Sonderkulturen mit Mindesterzeugungseinheiten erhoben | O31: Stillgelegte Flächen 4)
A32: 3) Stillgelegte Flächen mit Prämienanspruch, Brache und sonstiges | O32: Ackerland

Sheet Tabelle
A1: Was wächst auf dem Acker in NRW (Auswahl)?
A2: Ackerkulturen | B2: Betriebe | D2: Fläche | F2: ha/LF Betrieb | G2: kurz erklärt
B3: insgesamt | C3: % | D3: Hektar insgesamt | E3: %
A4: Ackerland | B4: 25479 | C4: 100 | D4: 1047873 | E4: 100 | F4: =D4/B4 -> 41.12692806
A5: Getreide insgesamt | B5: 20769 | C5: =B5/$B$4*100 -> 81.51418815 | D5: 570124 | E5: =D5/$D$4*100 -> 54.40773834 | F5: =D5/B5 -> 27.45071982
A6: darunter
A7: Weizen zusammen | B7: 14179 | C7: =B7/$B$4*100 -> 55.64975078 | D7: 234045 | E7: =D7/$D$4*100 -> 22.33524482 | F7: 16.50645321
A8: Wintergerste | B8: 13328 | C8: =B8/$B$4*100 -> 52.30974528 | D8: 146801 | E8: =D8/$D$4*100 -> 14.00942671 | F8: =D8/B8 -> 11.01448079
A9: Triticale | B9: 6719 | C9: =B9/$B$4*100 -> 26.37073669 | D9: 58618 | E9: =D9/$D$4*100 -> 5.593998509 | F9: =D9/B9 -> 8.724214913
A10: Roggen u. Wintermenggetreide | B10: 4387 | C10: 17.21810118 | D10: 33579 | E10: 3.204491384 | F10: 7.654205607
A11: Sommergerste | B11: 2004 | C11: 7.865300836 | D11: 9219 | E11: 0.8797821873 | F11: 4.600299401
A12: Hafer | B12: 2164 | C12: 8.493268967 | D12: 7601 | E12: 0.7253741627 | F12: 3.512476895
A13: Könermais, CCM | B13: 5508 | C13: 21.6178029 | D13: 79726 | E13: 7.608364754 | F13: 14.47458243
A14: Hackfrüchte insgesamt | B14: 5919 | C14: 23.23089603 | D14: 87849 | E14: 8.383554114 | F14: =D14/B14 -> 14.84186518
A15: darunter
A16: Kartoffeln | B16: 3110 | C16: =B16/$B$4*100 -> 12.20613054 | D16: 36722 | E16: =D16/$D$4*100 -> 3.504432312 | F16: 11.80771704
A17: Zuckerrüben | B17: 3771 | C17: =B17/$B$4*100 -> 14.80042388 | D17: 50677 | E17: =D17/$D$4*100 -> 4.836177667 | F17: 13.43861045
A18: Gartengewächse insgesamt | B18: 2712 | C18: =B18/$B$4*100 -> 10.64405981 | D18: 31531 | E18: =D18/$D$4*100 -> 3.009047852 | F18: =D18/B18 -> 11.62647493
A19: darunter
A20: Gemüse, Spargel, Erdbeeren | B20: 1826 | C20: =B20/$B$4*100 -> 7.166686291 | D20: 28539 | E20: =D20/$D$4*100 -> 2.723517067 | F20: 15.62924425
A21: Blumen, Zierpflanzen | B21: 1003 | C21: =B21/$B$4*100 -> 3.936575219 | D21: 2850 | E21: =D21/$D$4*100 -> 0.2719795242 | F21: 2.841475573
A22: Handelsgewächse insgesamt | B22: 4149 | C22: =B22/$B$4*100 -> 16.28399859 | D22: 44527 | E22: =D22/$D$4*100 -> 4.249274483 | F22: =D22/B22 -> 10.73198361
A23: darunter
A24: Winterraps | B24: 3524 | C24: =B24/$B$4*100 -> 13.83099808 | D24: 40871 | E24: =D24/$D$4*100 -> 3.90037724 | F24: 11.59790011
A25: Pflanzen zur Grünernte insgesamt | B25: 17507 | C25: =B25/$B$4*100 -> 68.71148789 | D25: 267291 | E25: =D25/$D$4*100 -> 25.50795755 | F25: 15.26766436
A26: darunter
A27: Silomais | B27: 13574 | C27: =B27/$B$4*100 -> 53.27524628 | D27: 214701 | E27: =D27/$D$4*100 -> 20.48921959 | F27: 15.81707676
A28: Feldgras | B28: 8286 | C28: =B28/$B$4*100 -> 32.52089956 | D28: 34454 | E28: =D28/$D$4*100 -> 3.287993869 | F28: 4.158097997
